Department Family,Entity,Date,Expense Type,Expense Area,Supplier,Amount in sterling
BIS,Companies House,04/08/2022,Adjudicator General,Edinburgh,WALKER LOVE,"5,277.02 "
BIS,Companies House,04/08/2022,Belfast Maintenance,Northern Ireland,GOVERNMENT PROPERTY AGENCY (Montagu Evans),"1,943.62 "
BIS,Companies House,11/08/2022,Belfast Maintenance,Regional Estates - Belfast,GOVERNMENT PROPERTY AGENCY (Montagu Evans),"1,979.83 "
BIS,Companies House,05/08/2022,CE Misc Additions TY,Infrastructure,BALLICOM LIMITED,"16,722.33 "
BIS,Companies House,05/08/2022,CE Misc Additions TY,Infrastructure,BALLICOM LIMITED,"16,722.33 "
BIS,Companies House,05/08/2022,CE Misc Additions TY,Infrastructure,KINGSFIELD COMPUTER PRODUCTS LTD,"7,811.28 "
BIS,Companies House,11/08/2022,CE Misc Additions TY,Infrastructure,ACS Systems UK Limited,"35,724.14 "
BIS,Companies House,16/08/2022,CE Misc Additions TY,Infrastructure,TEQEX LTD,"12,330.14 "
BIS,Companies House,16/08/2022,CE Misc Additions TY,Infrastructure,TEQEX LTD,"8,974.42 "
BIS,Companies House,25/08/2022,CHD Invoice Printing,Accounting,PARAGON CUSTOMER COMMUNICATIONS (LONDON),549.95 
BIS,Companies House,24/08/2022,Circuit Rental,Infrastructure,AdEPT Telecom PLC,"3,918.07 "
BIS,Companies House,04/08/2022,Cleaning Contract,Building Services,GOVERNMENT PROPERTY AGENCY (Montagu Evans),"37,437.34 "
BIS,Companies House,04/08/2022,Cleaning Contract,Edinburgh,GOVERNMENT PROPERTY AGENCY (Montagu Evans),843.51 
BIS,Companies House,04/08/2022,Cleaning Contract,London Information Centre,GOVERNMENT PROPERTY AGENCY (Montagu Evans),"1,456.89 "
BIS,Companies House,04/08/2022,Cleaning Contract,Northern Ireland,GOVERNMENT PROPERTY AGENCY (Montagu Evans),617.09 
BIS,Companies House,11/08/2022,Cleaning Contract,Regional Estates - Belfast,GOVERNMENT PROPERTY AGENCY (Montagu Evans),"1,552.11 "
BIS,Companies House,11/08/2022,Cleaning Contract,Regional Estates - London,GOVERNMENT PROPERTY AGENCY (Montagu Evans),"1,558.87 "
BIS,Companies House,11/08/2022,Cloud Services,Infrastructure Engineering,INSIGHT DIRECT (UK) LTD,"15,311.76 "
BIS,Companies House,11/08/2022,Cloud Services,Infrastructure Engineering,INSIGHT DIRECT (UK) LTD,"17,551.14 "
BIS,Companies House,18/08/2022,Cloud Services,Infrastructure Engineering,Amazon Web Services,710.09 
BIS,Companies House,18/08/2022,Cloud Services,Infrastructure Engineering,Amazon Web Services,"3,391.11 "
BIS,Companies House,19/08/2022,Cloud Services,Infrastructure Engineering,Amazon Web Services,"190,962.60 "
BIS,Companies House,19/08/2022,Cloud Services,Infrastructure Engineering,Amazon Web Services,"16,993.38 "
BIS,Companies House,19/08/2022,Cloud Services,Infrastructure Engineering,Amazon Web Services,"(40,102.11)"
BIS,Companies House,19/08/2022,Cloud Services,Infrastructure Engineering,Amazon Web Services,"(3,568.61)"
BIS,Companies House,04/08/2022,Computer Equipment,Infrastructure,VOHKUS LIMITED,"1,686.50 "
BIS,Companies House,10/08/2022,Computer Equipment,Infrastructure,SOFTCAT LIMITED,"1,494.50 "
BIS,Companies House,09/08/2022,Computer Equipment,Infrastructure,VOHKUS LIMITED,"3,184.08 "
BIS,Companies House,02/08/2022,Consultants Computer,Accounting,Advanced Business Solutions,"5,805 "
BIS,Companies House,19/08/2022,Contact Centre,CDD Cardiff,Serco Limited,"200,184.20 "
BIS,Companies House,02/08/2022,Contract Staff,Accounting,MICHAEL PAGE INTERNATIONAL RECRUITMENT,"1,778.44 "
BIS,Companies House,10/08/2022,Contract Staff,Accounting,MICHAEL PAGE INTERNATIONAL RECRUITMENT,"1,222.68 "
BIS,Companies House,16/08/2022,Contract Staff,Accounting,MICHAEL PAGE INTERNATIONAL RECRUITMENT,"2,223.05 "
BIS,Companies House,02/08/2022,Contract Staff,Architecture & Design,Hays Specialist Recruitment Ltd,"4,980.24 "
BIS,Companies House,02/08/2022,Contract Staff,Architecture & Design,Hays Specialist Recruitment Ltd,"4,980.24 "
BIS,Companies House,02/08/2022,Contract Staff,Architecture & Design,Hays Specialist Recruitment Ltd,"4,980.24 "
BIS,Companies House,02/08/2022,Contract Staff,Architecture & Design,Hays Specialist Recruitment Ltd,"4,980.24 "
BIS,Companies House,05/08/2022,Contract Staff,Architecture & Design,ALEXANDER MANN SOLUTIONS,"3,780.36 "
BIS,Companies House,05/08/2022,Contract Staff,Architecture & Design,ALEXANDER MANN SOLUTIONS,"4,772.22 "
BIS,Companies House,15/08/2022,Contract Staff,Architecture & Design,ALEXANDER MANN SOLUTIONS,"12,271.32 "
BIS,Companies House,15/08/2022,Contract Staff,Architecture & Design,ALEXANDER MANN SOLUTIONS,"3,780.36 "
BIS,Companies House,16/08/2022,Contract Staff,Architecture & Design,Spring Technology Staffing Services Ltd,"2,558.70 "
BIS,Companies House,16/08/2022,Contract Staff,Architecture & Design,Spring Technology Staffing Services Ltd,"4,264.50 "
BIS,Companies House,16/08/2022,Contract Staff,Architecture & Design,Spring Technology Staffing Services Ltd,"4,264.50 "
BIS,Companies House,16/08/2022,Contract Staff,Architecture & Design,Spring Technology Staffing Services Ltd,"4,264.50 "
BIS,Companies House,16/08/2022,Contract Staff,Architecture & Design,Spring Technology Staffing Services Ltd,"4,264.50 "
BIS,Companies House,16/08/2022,Contract Staff,Architecture & Design,Spring Technology Staffing Services Ltd,"4,264.50 "
BIS,Companies House,16/08/2022,Contract Staff,Architecture & Design,Spring Technology Staffing Services Ltd,"4,264.50 "
BIS,Companies House,16/08/2022,Contract Staff,Architecture & Design,Spring Technology Staffing Services Ltd,"4,264.50 "
BIS,Companies House,16/08/2022,Contract Staff,Architecture & Design,Spring Technology Staffing Services Ltd,"4,264.50 "
BIS,Companies House,16/08/2022,Contract Staff,Architecture & Design,Spring Technology Staffing Services Ltd,"4,264.50 "
BIS,Companies House,16/08/2022,Contract Staff,Architecture & Design,Hays Specialist Recruitment Ltd,"4,980.24 "
BIS,Companies House,16/08/2022,Contract Staff,Architecture & Design,Hays Specialist Recruitment Ltd,"4,070.64 "
BIS,Companies House,19/08/2022,Contract Staff,Architecture & Design,ALEXANDER MANN SOLUTIONS,"3,780.36 "
BIS,Companies House,19/08/2022,Contract Staff,Architecture & Design,ALEXANDER MANN SOLUTIONS,"4,090.44 "
BIS,Companies House,19/08/2022,Contract Staff,Architecture & Design,ALEXANDER MANN SOLUTIONS,"9,544.44 "
BIS,Companies House,19/08/2022,Contract Staff,Architecture & Design,ALEXANDER MANN SOLUTIONS,"12,097.15 "
BIS,Companies House,23/08/2022,Contract Staff,Architecture & Design,Hays Specialist Recruitment Ltd,"4,980.24 "
BIS,Companies House,24/08/2022,Contract Staff,Architecture & Design,Hays Specialist Recruitment Ltd,"4,070.64 "
BIS,Companies House,26/08/2022,Contract Staff,Architecture & Design,ALEXANDER MANN SOLUTIONS,"2,268.22 "
BIS,Companies House,26/08/2022,Contract Staff,Architecture & Design,ALEXANDER MANN SOLUTIONS,"4,772.22 "
BIS,Companies House,26/08/2022,Contract Staff,Architecture & Design,ALEXANDER MANN SOLUTIONS,"5,040.48 "
BIS,Companies House,02/08/2022,Contract Staff,"Data, Analytics & Research DAR",Hays Specialist Recruitment Ltd,"2,807.52 "
BIS,Companies House,04/08/2022,Contract Staff,"Data, Analytics & Research DAR",Spring Technology Staffing Services Ltd,"3,651.60 "
BIS,Companies House,04/08/2022,Contract Staff,"Data, Analytics & Research DAR",Spring Technology Staffing Services Ltd,"4,564.50 "
BIS,Companies House,04/08/2022,Contract Staff,"Data, Analytics & Research DAR",Spring Technology Staffing Services Ltd,912.90 
BIS,Companies House,08/08/2022,Contract Staff,"Data, Analytics & Research DAR",Hays Specialist Recruitment Ltd,"2,807.52 "
BIS,Companies House,15/08/2022,Contract Staff,"Data, Analytics & Research DAR",CONCEPT RESOURCING T/A CONCEPT INFORMATION,"1,102 "
BIS,Companies House,16/08/2022,Contract Staff,"Data, Analytics & Research DAR",Hays Specialist Recruitment Ltd,"2,807.52 "
BIS,Companies House,19/08/2022,Contract Staff,"Data, Analytics & Research DAR",CONCEPT RESOURCING T/A CONCEPT INFORMATION,"1,102 "
BIS,Companies House,23/08/2022,Contract Staff,"Data, Analytics & Research DAR",Hays Specialist Recruitment Ltd,"2,807.52 "
BIS,Companies House,25/08/2022,Contract Staff,"Data, Analytics & Research DAR",CONCEPT RESOURCING T/A CONCEPT INFORMATION,"1,102 "
BIS,Companies House,31/08/2022,Contract Staff,"Data, Analytics & Research DAR",Hays Specialist Recruitment Ltd,"1,123.01 "
BIS,Companies House,15/08/2022,Contract Staff,Directorate,ALEXANDER MANN SOLUTIONS,"5,544.53 "
BIS,Companies House,19/08/2022,Contract Staff,Directorate,ALEXANDER MANN SOLUTIONS,"11,089.06 "
BIS,Companies House,26/08/2022,Contract Staff,Directorate,ALEXANDER MANN SOLUTIONS,"6,930.66 "
BIS,Companies House,02/08/2022,Contract Staff,Infrastructure,Hays Specialist Recruitment Ltd,"4,070.64 "
BIS,Companies House,02/08/2022,Contract Staff,Infrastructure,Hays Specialist Recruitment Ltd,"4,070.64 "
BIS,Companies House,02/08/2022,Contract Staff,Infrastructure,Spring Technology Staffing Services Ltd,"4,264.50 "
BIS,Companies House,19/08/2022,Contract Staff,Infrastructure,Hays Specialist Recruitment Ltd,"4,070.64 "
BIS,Companies House,19/08/2022,Contract Staff,Infrastructure,Hays Specialist Recruitment Ltd,"4,070.64 "
BIS,Companies House,19/08/2022,Contract Staff,Infrastructure,Spring Technology Staffing Services Ltd,"4,264.50 "
BIS,Companies House,19/08/2022,Contract Staff,Infrastructure,Spring Technology Staffing Services Ltd,"4,264.50 "
BIS,Companies House,23/08/2022,Contract Staff,Infrastructure,Hays Specialist Recruitment Ltd,"4,070.64 "
BIS,Companies House,24/08/2022,Contract Staff,Infrastructure,Spring Technology Staffing Services Ltd,"3,411.60 "
BIS,Companies House,31/08/2022,Contract Staff,Infrastructure,Spring Technology Staffing Services Ltd,"4,264.50 "
BIS,Companies House,02/08/2022,Contract Staff,Infrastructure Engineering,CONCEPT RESOURCING T/A CONCEPT INFORMATION,"3,274.50 "
BIS,Companies House,02/08/2022,Contract Staff,Infrastructure Engineering,Spring Technology Staffing Services Ltd,"3,750 "
BIS,Companies House,02/08/2022,Contract Staff,Infrastructure Engineering,Spring Technology Staffing Services Ltd,"3,750 "
BIS,Companies House,10/08/2022,Contract Staff,Infrastructure Engineering,Spring Technology Staffing Services Ltd,"3,750 "
BIS,Companies House,15/08/2022,Contract Staff,Infrastructure Engineering,CONCEPT RESOURCING T/A CONCEPT INFORMATION,"3,274.50 "
BIS,Companies House,15/08/2022,Contract Staff,Infrastructure Engineering,CONCEPT RESOURCING T/A CONCEPT INFORMATION,"3,274.50 "
BIS,Companies House,16/08/2022,Contract Staff,Infrastructure Engineering,Spring Technology Staffing Services Ltd,"3,750 "
BIS,Companies House,23/08/2022,Contract Staff,Infrastructure Engineering,Spring Technology Staffing Services Ltd,"3,750 "
BIS,Companies House,25/08/2022,Contract Staff,Infrastructure Engineering,CONCEPT RESOURCING T/A CONCEPT INFORMATION,"3,274.50 "
BIS,Companies House,31/08/2022,Contract Staff,Infrastructure Engineering,Spring Technology Staffing Services Ltd,"3,750 "
BIS,Companies House,05/08/2022,Contract Staff,Internal Communications,Hays Specialist Recruitment Ltd,"1,035.02 "
BIS,Companies House,11/08/2022,Contract Staff,Internal Communications,Hays Specialist Recruitment Ltd,"1,293.78 "
BIS,Companies House,19/08/2022,Contract Staff,Internal Communications,Hays Specialist Recruitment Ltd,"1,155.78 "
BIS,Companies House,31/08/2022,Contract Staff,Internal Communications,Hays Specialist Recruitment Ltd,"6,643.20 "
BIS,Companies House,05/08/2022,Contract Staff,Late Filing Penalties,INNOVO LAW LTD,"2,360 "
BIS,Companies House,04/08/2022,Contract Staff,Procurement,Hays Specialist Recruitment Ltd,"3,873.30 "
BIS,Companies House,02/08/2022,Contract Staff,Procurement,Hays Specialist Recruitment Ltd,"3,570.06 "
BIS,Companies House,02/08/2022,Contract Staff,Procurement,Hays Specialist Recruitment Ltd,"3,541.26 "
BIS,Companies House,02/08/2022,Contract Staff,Procurement,Hays Specialist Recruitment Ltd,"3,873.30 "
BIS,Companies House,11/08/2022,Contract Staff,Procurement,Hays Specialist Recruitment Ltd,"3,570.06 "
BIS,Companies House,11/08/2022,Contract Staff,Procurement,Hays Specialist Recruitment Ltd,"1,549.32 "
BIS,Companies House,19/08/2022,Contract Staff,Procurement,Hays Specialist Recruitment Ltd,"3,570.06 "
BIS,Companies House,19/08/2022,Contract Staff,Procurement,ALEXANDER MANN SOLUTIONS,"4,410.42 "
BIS,Companies House,19/08/2022,Contract Staff,Procurement,ALEXANDER MANN SOLUTIONS,"4,410.42 "
BIS,Companies House,19/08/2022,Contract Staff,Procurement,ALEXANDER MANN SOLUTIONS,"4,410.42 "
BIS,Companies House,31/08/2022,Contract Staff,Procurement,Hays Specialist Recruitment Ltd,"4,845.18 "
BIS,Companies House,31/08/2022,Contract Staff,Procurement,Hays Specialist Recruitment Ltd,"4,845.18 "
BIS,Companies House,31/08/2022,Contract Staff,Procurement,Hays Specialist Recruitment Ltd,"4,845.18 "
BIS,Companies House,31/08/2022,Contract Staff,Procurement,Hays Specialist Recruitment Ltd,"4,845.18 "
BIS,Companies House,05/08/2022,Contract Staff,Product Delivery,ALEXANDER MANN SOLUTIONS,"4,504.92 "
BIS,Companies House,05/08/2022,Contract Staff,Product Delivery,ALEXANDER MANN SOLUTIONS,"3,276.29 "
BIS,Companies House,05/08/2022,Contract Staff,Product Delivery,ALEXANDER MANN SOLUTIONS,"4,311.48 "
BIS,Companies House,05/08/2022,Contract Staff,Product Delivery,ALEXANDER MANN SOLUTIONS,"8,972.04 "
BIS,Companies House,05/08/2022,Contract Staff,Product Delivery,ALEXANDER MANN SOLUTIONS,"4,410.42 "
BIS,Companies House,05/08/2022,Contract Staff,Product Delivery,ALEXANDER MANN SOLUTIONS,"4,410.42 "
BIS,Companies House,15/08/2022,Contract Staff,Product Delivery,ALEXANDER MANN SOLUTIONS,"4,410.42 "
BIS,Companies House,15/08/2022,Contract Staff,Product Delivery,ALEXANDER MANN SOLUTIONS,"4,095.36 "
BIS,Companies House,15/08/2022,Contract Staff,Product Delivery,ALEXANDER MANN SOLUTIONS,"4,504.92 "
BIS,Companies House,15/08/2022,Contract Staff,Product Delivery,ALEXANDER MANN SOLUTIONS,"8,622.96 "
BIS,Companies House,15/08/2022,Contract Staff,Product Delivery,ALEXANDER MANN SOLUTIONS,"4,252.86 "
BIS,Companies House,15/08/2022,Contract Staff,Product Delivery,ALEXANDER MANN SOLUTIONS,"4,486.02 "
BIS,Companies House,15/08/2022,Contract Staff,Product Delivery,ALEXANDER MANN SOLUTIONS,"4,410.42 "
BIS,Companies House,19/08/2022,Contract Staff,Product Delivery,ALEXANDER MANN SOLUTIONS,"4,311.48 "
BIS,Companies House,19/08/2022,Contract Staff,Product Delivery,ALEXANDER MANN SOLUTIONS,"4,095.36 "
BIS,Companies House,19/08/2022,Contract Staff,Product Delivery,ALEXANDER MANN SOLUTIONS,"4,504.92 "
BIS,Companies House,19/08/2022,Contract Staff,Product Delivery,ALEXANDER MANN SOLUTIONS,"4,486.02 "
BIS,Companies House,19/08/2022,Contract Staff,Product Delivery,ALEXANDER MANN SOLUTIONS,"4,410.42 "
BIS,Companies House,19/08/2022,Contract Staff,Product Delivery,ALEXANDER MANN SOLUTIONS,"2,646.25 "
BIS,Companies House,19/08/2022,Contract Staff,Product Delivery,ALEXANDER MANN SOLUTIONS,"4,252.86 "
BIS,Companies House,19/08/2022,Contract Staff,Product Delivery,ALEXANDER MANN SOLUTIONS,"4,095.36 "
BIS,Companies House,26/08/2022,Contract Staff,Product Delivery,ALEXANDER MANN SOLUTIONS,"4,311.48 "
BIS,Companies House,26/08/2022,Contract Staff,Product Delivery,ALEXANDER MANN SOLUTIONS,"4,095.36 "
BIS,Companies House,26/08/2022,Contract Staff,Product Delivery,ALEXANDER MANN SOLUTIONS,"4,252.86 "
BIS,Companies House,26/08/2022,Contract Staff,Product Delivery,ALEXANDER MANN SOLUTIONS,"4,504.92 "
BIS,Companies House,26/08/2022,Contract Staff,Product Delivery,ALEXANDER MANN SOLUTIONS,"4,486.02 "
BIS,Companies House,26/08/2022,Contract Staff,Product Delivery,ALEXANDER MANN SOLUTIONS,"4,410.42 "
BIS,Companies House,26/08/2022,Contract Staff,Product Delivery,ALEXANDER MANN SOLUTIONS,"4,410.42 "
BIS,Companies House,19/08/2022,Contract Staff,Projects,Hays Specialist Recruitment Ltd,"2,203.24 "
BIS,Companies House,19/08/2022,Contract Staff,Projects,Hays Specialist Recruitment Ltd,"2,203.24 "
BIS,Companies House,19/08/2022,Contract Staff,Projects,Hays Specialist Recruitment Ltd,"1,258.99 "
BIS,Companies House,19/08/2022,Contract Staff,Projects,Hays Specialist Recruitment Ltd,"1,888.49 "
BIS,Companies House,05/08/2022,Contract Staff,WebOps & DevOps,ALEXANDER MANN SOLUTIONS,"7,815.72 "
BIS,Companies House,10/08/2022,Contract Staff,WebOps & DevOps,Spring Technology Staffing Services Ltd,"4,264.50 "
BIS,Companies House,10/08/2022,Contract Staff,WebOps & DevOps,Spring Technology Staffing Services Ltd,"4,264.50 "
BIS,Companies House,10/08/2022,Contract Staff,WebOps & DevOps,Spring Technology Staffing Services Ltd,"4,264.50 "
BIS,Companies House,10/08/2022,Contract Staff,WebOps & DevOps,Spring Technology Staffing Services Ltd,"4,264.50 "
BIS,Companies House,10/08/2022,Contract Staff,WebOps & DevOps,Spring Technology Staffing Services Ltd,"4,264.50 "
BIS,Companies House,10/08/2022,Contract Staff,WebOps & DevOps,Spring Technology Staffing Services Ltd,"4,264.50 "
BIS,Companies House,23/08/2022,Contract Staff,WebOps & DevOps,Spring Technology Staffing Services Ltd,"4,264.50 "
BIS,Companies House,26/08/2022,Contract Staff,WebOps & DevOps,ALEXANDER MANN SOLUTIONS,"10,942.01 "
BIS,Companies House,03/08/2022,Credit Card Charges,Accounting,WORLDPAY LIMITED,"1,666.15 "
BIS,Companies House,03/08/2022,Credit Card Charges,Accounting,WORLDPAY LIMITED,"13,384.55 "
BIS,Companies House,03/08/2022,Credit Card Charges,Accounting,WORLDPAY LIMITED,"34,417.56 "
BIS,Companies House,03/08/2022,Credit Card Charges,Accounting,WORLDPAY LIMITED,"32,071.75 "
BIS,Companies House,24/08/2022,Credit Card Charges,Accounting,WORLDPAY LIMITED,"10,848.04 "
BIS,Companies House,24/08/2022,Credit Card Charges,Accounting,WORLDPAY LIMITED,"1,297.38 "
BIS,Companies House,19/08/2022,Credit Card Charges,Accounting,WORLDPAY LIMITED,"2,521.92 "
BIS,Companies House,19/08/2022,Credit Card Charges,Accounting,WORLDPAY LIMITED,"31,651.36 "
BIS,Companies House,02/08/2022,Credit Card Charges,Late Filing Penalties Accounting,WORLDPAY LIMITED,535.09 
BIS,Companies House,03/08/2022,Credit Card Charges,Late Filing Penalties Accounting,WORLDPAY LIMITED,"14,783.39 "
BIS,Companies House,03/08/2022,Credit Card Charges,Late Filing Penalties Accounting,WORLDPAY LIMITED,"13,953.01 "
BIS,Companies House,19/08/2022,Credit Card Charges,Late Filing Penalties Accounting,WORLDPAY LIMITED,"13,960.11 "
BIS,Companies House,04/08/2022,Edinburgh Maintenance,Edinburgh,GOVERNMENT PROPERTY AGENCY (Montagu Evans),"1,269.73 "
BIS,Companies House,11/08/2022,Edinburgh Maintenance,Regional Estates - Edinburgh,GOVERNMENT PROPERTY AGENCY (Montagu Evans),"2,225.20 "
BIS,Companies House,16/08/2022,Electricity,Building Services,EDF ENERGY CUSTOMERS PLC,"54,582.32 "
BIS,Companies House,04/08/2022,Electricity,Regional Estates - Edinburgh,EDF ENERGY CUSTOMERS PLC,"1,001.88 "
BIS,Companies House,25/08/2022,Envelopes,Procurement,BLAKE ENVELOPES,"1,013 "
BIS,Companies House,04/08/2022,Environmental costs,Building Services,British Standards Institute,"1,892 "
BIS,Companies House,04/08/2022,EST Additions This Year,Estates Projects,Andrew Walker Electrical Solutions Ltd,"1,580 "
BIS,Companies House,11/08/2022,EST Additions This Year,Estates Projects,Computerised & Digital Security Systems,"26,594.62 "
BIS,Companies House,10/08/2022,EST Additions This Year,Estates Projects,P J Telecom Services,"1,600 "
BIS,Companies House,10/08/2022,EST Additions This Year,Estates Projects,Andrew Walker Electrical Solutions Ltd,992 
BIS,Companies House,24/08/2022,EST Additions This Year,Estates Projects,Computerised & Digital Security Systems,"4,012 "
BIS,Companies House,25/08/2022,EST Additions This Year,Estates Projects,Computerised & Digital Security Systems,"9,563.90 "
BIS,Companies House,15/08/2022,Extl Scrum Resource Costs,Architecture & Design,FDM GROUP,"66,660 "
BIS,Companies House,15/08/2022,Extl Scrum Resource Costs,Architecture & Design,FDM GROUP,"52,380 "
BIS,Companies House,24/08/2022,Gazette Notices,CDD Cardiff,Stationery Office (Williams Lea),"9,217.40 "
BIS,Companies House,24/08/2022,Gazette Notices,CDD Cardiff,Stationery Office (Williams Lea),"9,217.40 "
BIS,Companies House,23/08/2022,Government Legal,CDD Cardiff,GOVERNMENT LEGAL DEPARTMENT,"78,495.84 "
BIS,Companies House,22/08/2022,Government Legal,Legal Services,GOVERNMENT LEGAL DEPARTMENT,820.56 
BIS,Companies House,16/08/2022,Hardware & Software Maintenance,Accounting,CHECKPRINT LTD,"5,509.05 "
BIS,Companies House,04/08/2022,Hardware & Software Maintenance,Architecture & Design,TRAMS LIMITED,961.02 
BIS,Companies House,15/08/2022,Hardware & Software Maintenance,HR Strategy & Policy,HFX Ltd,"27,432 "
BIS,Companies House,08/08/2022,Hardware & Software Maintenance,Infrastructure,AUTOMATED-INTELLIGENCE LTD,"2,500 "
BIS,Companies House,10/08/2022,Hardware & Software Maintenance,WebOps & DevOps,Kodak Alaris Ltd,"20,172.86 "
BIS,Companies House,10/08/2022,Hardware & Software Maintenance,WebOps & DevOps,APPDYNAMICS INTERNATIONAL LTD,"57,558 "
BIS,Companies House,22/08/2022,Hardware & Software Maintenance,WebOps & DevOps,EDM Group Ltd,"23,301.50 "
BIS,Companies House,25/08/2022,Hardware & Software Maintenance,WebOps & DevOps,NTT DATA BUSINESS SOLUTIONS LTD,"13,537 "
BIS,Companies House,02/08/2022,Independent adjudication,Late Filing Penalties,Independent adjudication,"1,180 "
BIS,Companies House,05/08/2022,Independent adjudication,Late Filing Penalties,Independent adjudication,823 
BIS,Companies House,15/08/2022,Independent adjudication,Late Filing Penalties,LAW Absolute Limited,"2,000 "
BIS,Companies House,15/08/2022,Independent adjudication,Late Filing Penalties,LAW Absolute Limited,"2,000 "
BIS,Companies House,25/08/2022,Internal Audit costs,Directorate,HM TREASURY GROUP,"29,625 "
BIS,Companies House,04/08/2022,Leasehold Improvements This Yr,Estates Projects,CENTRAL ROOFING & BUILDING SERVICES LTD,"4,737.76 "
BIS,Companies House,04/08/2022,Leasehold Improvements This Yr,Estates Projects,MORRIS'S GROUNDS MAINTENANCE LIMITED,"1,620 "
BIS,Companies House,04/08/2022,Leasehold Improvements This Yr,Estates Projects,R & R SITE SERVICES,"8,131.47 "
BIS,Companies House,10/08/2022,Leasehold Improvements This Yr,Estates Projects,BCM CONSTRUCTION LIMITED,"34,044.13 "
BIS,Companies House,10/08/2022,Leasehold Improvements This Yr,Estates Projects,Schneider Electric,"10,992 "
BIS,Companies House,16/08/2022,Legal Disbursements,Late Filing Penalties Accounting,INDESSER,"66,867.03 "
BIS,Companies House,16/08/2022,Legal Disbursements,Late Filing Penalties Accounting,INDESSER,"499,350 "
BIS,Companies House,02/08/2022,Legal Disbursements,Late Filing Penalties Edinburgh,ALSTON LAW LTD,774 
BIS,Companies House,16/08/2022,Legal Disbursements,Late Filing Penalties Edinburgh,INDESSER,"3,264.43 "
BIS,Companies House,16/08/2022,Legal Disbursements,Late Filing Penalties Edinburgh,INDESSER,"60,703.20 "
BIS,Companies House,16/08/2022,Legal Disbursements,Late Filing Penalties Northern Ireland,INDESSER,907.99 
BIS,Companies House,16/08/2022,Legal Disbursements,Late Filing Penalties Northern Ireland,INDESSER,"10,282 "
BIS,Companies House,04/08/2022,London Maintenance,London Information Centre,GOVERNMENT PROPERTY AGENCY (Montagu Evans),"2,726.70 "
BIS,Companies House,11/08/2022,London Maintenance,Regional Estates - London,GOVERNMENT PROPERTY AGENCY (Montagu Evans),"2,240.49 "
BIS,Companies House,04/08/2022,Maintenance Contract,Building Services,GOVERNMENT PROPERTY AGENCY (Montagu Evans),"122,178.84 "
BIS,Companies House,04/08/2022,Maintenance Contract,Building Services,GOVERNMENT PROPERTY AGENCY (Montagu Evans),"83,931.61 "
BIS,Companies House,04/08/2022,Occupational Health Contract,Building Services,PEOPLE ASSET MANAGEMENT GROUP LTD,"1,163 "
BIS,Companies House,04/08/2022,Occupational Health Contract,Building Services,PEOPLE ASSET MANAGEMENT GROUP LTD,783 
BIS,Companies House,04/08/2022,Occupational Health Contract,Building Services,PEOPLE ASSET MANAGEMENT GROUP LTD,760 
BIS,Companies House,19/08/2022,Occupational Health Contract,HR Strategy & Policy,Health Partners Duradiamond Ltd,"9,384.67 "
BIS,Companies House,19/08/2022,Occupational Health Contract,HR Strategy & Policy,Health Partners Duradiamond Ltd,"9,782.48 "
BIS,Companies House,16/08/2022,Office Furniture,Estates Projects,D&G OFFICE INTERIORS LTD,"1,420.49 "
BIS,Companies House,26/08/2022,Office Furniture,Estates Projects,D&G OFFICE INTERIORS LTD,583 
BIS,Companies House,08/08/2022,Office Machinery Maintenance,Procurement,RISO (uk) LTD,"1,093.73 "
BIS,Companies House,11/08/2022,OM Additions This Year,Estates Projects,Schneider Electric,"101,113.44 "
BIS,Companies House,02/08/2022,Postage,CDD Cardiff,Royal Mail,"5,689.11 "
BIS,Companies House,04/08/2022,Postage,CDD Cardiff,Royal Mail,"1,399.91 "
BIS,Companies House,04/08/2022,Postage,CDD Cardiff,Royal Mail,"4,489.59 "
BIS,Companies House,15/08/2022,Postage,CDD Cardiff,Royal Mail,"3,207.12 "
BIS,Companies House,19/08/2022,Postage,CDD Cardiff,Royal Mail,"2,818.13 "
BIS,Companies House,24/08/2022,Postage,CDD Cardiff,Royal Mail,"3,319.34 "
BIS,Companies House,19/08/2022,Postage,Edinburgh,Royal Mail,"1,004.59 "
BIS,Companies House,05/08/2022,Postage,Infrastructure,BALLICOM LIMITED,950 
BIS,Companies House,04/08/2022,Print and Mailing Contract,CDD Cardiff,APS GROUP,"112,343.28 "
BIS,Companies House,04/08/2022,Print and Mailing Contract,CDD Cardiff,APS GROUP,"22,688.92 "
BIS,Companies House,10/08/2022,Print and Mailing Contract,CDD Cardiff,APS GROUP,"2,448.45 "
BIS,Companies House,24/08/2022,Print and Mailing Contract,CDD Cardiff,APS GROUP,"130,856.24 "
BIS,Companies House,04/08/2022,Print and Mailing Contract,Late Filing Penalties Accounting,A McLay & Company Ltd,"4,523.78 "
BIS,Companies House,04/08/2022,Print and Mailing Contract,Late Filing Penalties Accounting,A McLay & Company Ltd,"8,529.25 "
BIS,Companies House,04/08/2022,Print and Mailing Contract,Late Filing Penalties Accounting,A McLay & Company Ltd,"6,619.77 "
BIS,Companies House,04/08/2022,Print and Mailing Contract,Late Filing Penalties Accounting,A McLay & Company Ltd,"5,386.84 "
BIS,Companies House,19/08/2022,Print and Mailing Contract,Late Filing Penalties Accounting,A McLay & Company Ltd,"6,844.94 "
BIS,Companies House,19/08/2022,Print and Mailing Contract,Late Filing Penalties Accounting,A McLay & Company Ltd,"6,246.24 "
BIS,Companies House,19/08/2022,Print and Mailing Contract,Late Filing Penalties Accounting,A McLay & Company Ltd,"6,183.55 "
BIS,Companies House,19/08/2022,Print and Mailing Contract,Late Filing Penalties Accounting,A McLay & Company Ltd,"6,148.54 "
BIS,Companies House,22/08/2022,Print and Mailing Contract,Late Filing Penalties Accounting,A McLay & Company Ltd,"7,657.32 "
BIS,Companies House,26/08/2022,Print and Mailing Contract,Portfolio,APS GROUP,"29,760.58 "
BIS,Companies House,25/08/2022,Professional Fees,DDaT Projects,NTT DATA BUSINESS SOLUTIONS LTD,"5,000 "
BIS,Companies House,10/08/2022,Professional Fees,I&E Activities,FIN-NET,"1,732 "
BIS,Companies House,18/08/2022,RATES,Building Services,City and County of Cardiff,"63,308.33 "
BIS,Companies House,18/08/2022,RATES,London Information Centre,CITY OF WESTMINSTER,"2,944 "
BIS,Companies House,18/08/2022,RATES,London Information Centre,CITY OF WESTMINSTER,"1,933.62 "
BIS,Companies House,30/08/2022,RATES,Regional Estates - Edinburgh,The City of Edinburgh Council,"5,993.25 "
BIS,Companies House,05/08/2022,Recruitment Expenses,HR Service delivery,Hays Specialist Recruitment Ltd,"2,250 "
BIS,Companies House,05/08/2022,Recruitment Expenses,HR Service delivery,Hays Specialist Recruitment Ltd,"2,670 "
BIS,Companies House,05/08/2022,Recruitment Expenses,HR Service delivery,Hays Specialist Recruitment Ltd,"3,000 "
BIS,Companies House,05/08/2022,Recruitment Expenses,HR Service delivery,Hays Specialist Recruitment Ltd,"3,000 "
BIS,Companies House,08/08/2022,Restaurant Services,Building Services,ARAMARK,"5,769.57 "
BIS,Companies House,25/08/2022,Rolling Maintenance & minor contracts,Building Services,SANTIA ASBESTOS MANAGEMENT LTD,"4,100 "
BIS,Companies House,19/08/2022,Security,Accounting,Loomis Uk Ltd,666.52 
BIS,Companies House,04/08/2022,Security,Building Services,GOVERNMENT PROPERTY AGENCY (Montagu Evans),"35,932.01 "
BIS,Companies House,04/08/2022,Security,Building Services,GOVERNMENT PROPERTY AGENCY (Montagu Evans),"38,447.25 "
BIS,Companies House,04/08/2022,Security,London Information Centre,GOVERNMENT PROPERTY AGENCY (Montagu Evans),"8,222.05 "
BIS,Companies House,11/08/2022,Security,Regional Estates - London,GOVERNMENT PROPERTY AGENCY (Montagu Evans),"8,797.59 "
BIS,Companies House,02/08/2022,Software as a service,Cyber Security,E2E ASSURE,"19,935 "
BIS,Companies House,02/08/2022,Software as a service,Cyber Security,E2E ASSURE,"12,965.90 "
BIS,Companies House,24/08/2022,Software Licence,Building Services,CARDINUS RISK MANAGEMENT LTD,"4,388.10 "
BIS,Companies House,04/08/2022,Stationery,Accounting,HAGUE COMPUTER SUPPLIES,585 
BIS,Companies House,25/08/2022,Subscriptions,CDD Cardiff,CCMA VENTURES LIMITED,799 
BIS,Companies House,24/08/2022,Telecom Rental,Infrastructure,AVOIRA LTD,"3,028.33 "
BIS,Companies House,15/08/2022,Telephone Costs,Infrastructure,TELEFONICA UK LTD,"5,677.87 "
BIS,Companies House,04/08/2022,TFM Management fees,Building Services,GOVERNMENT PROPERTY AGENCY (Montagu Evans),"14,051.67 "
BIS,Companies House,04/08/2022,TFM Management fees,Edinburgh,GOVERNMENT PROPERTY AGENCY (Montagu Evans),839.54 
BIS,Companies House,04/08/2022,TFM Management fees,London Information Centre,GOVERNMENT PROPERTY AGENCY (Montagu Evans),"1,269.02 "
BIS,Companies House,04/08/2022,TFM Management fees,Northern Ireland,GOVERNMENT PROPERTY AGENCY (Montagu Evans),833.48 
BIS,Companies House,11/08/2022,TFM Management fees,Regional Estates - Edinburgh,GOVERNMENT PROPERTY AGENCY (Montagu Evans),898.31 
BIS,Companies House,11/08/2022,TFM Management fees,Regional Estates - London,GOVERNMENT PROPERTY AGENCY (Montagu Evans),"1,357.85 "
BIS,Companies House,02/08/2022,Training Central,Training,Science Made Simple Ltd,600 
BIS,Companies House,02/08/2022,Training Directorate,Training,CSL-KPMG LLP,"1,500 "
BIS,Companies House,05/08/2022,Training Directorate,Training,Government Exchange,"1,940 "
BIS,Companies House,10/08/2022,Training Directorate,Training,CSL-KPMG LLP,520 
BIS,Companies House,15/08/2022,Training Directorate,Training,CSL-KPMG LLP,"1,500 "
BIS,Companies House,19/08/2022,Training Directorate,Training,We Are Service Works Ltd,"6,500 "
BIS,Companies House,24/08/2022,Training Directorate,Training,Content Design London,"1,700 "
BIS,Companies House,24/08/2022,Training Directorate,Training,RSS (SERVICES) LTD,734.91 
BIS,Companies House,31/08/2022,Training Directorate,Training,CSL-KPMG LLP,"1,500 "
BIS,Companies House,22/08/2022,Training External,Northern Ireland,Inquisitio Consulting Ltd,"1,600 "
BIS,Companies House,22/08/2022,Training External,Northern Ireland,Inquisitio Consulting Ltd,"1,600 "
BIS,Companies House,02/08/2022,Training External,Portfolio,CSL-KPMG LLP,"8,081 "
BIS,Companies House,10/08/2022,Water,Building Services,Dwr Cymru Welsh Water,"2,151.58 "
BIS,Companies House,18/08/2022,Water,Edinburgh,BUSINESS STREAM LIMITED,"5,067.71 "